[Event "*** SCC Grand Prix: Titled Tuesday Blitz"]
[Site "Chess.com"]
[Date "2020.08.04"]
[Round "2"]
[White "Carnivoras"]
[Black "SantoBlue"]
[Result "1-0"]
[WhiteElo "2611"]
[BlackElo "2909"]
[TimeControl "180+1"]
[EndTime "14:03:19 PDT"]
[Termination "Carnivoras won on time"]

1. d4 {[%clk 0:03:00.9]} 1... d6 {[%clk 0:02:59]} 2. Nf3 {[%clk 0:02:59.6]} 2...
c5 {[%clk 0:02:59.4]} 3. dxc5 {[%clk 0:02:56.7]} 3... Qa5+ {[%clk 0:02:59.3]} 4.
Nc3 {[%clk 0:02:51.8]} 4... Qxc5 {[%clk 0:02:58.8]} 5. e4 {[%clk 0:02:50.9]}
5... Nf6 {[%clk 0:02:58.3]} 6. Bb5+ {[%clk 0:02:47.3]} 6... Nc6 {[%clk
0:02:54.1]} 7. O-O {[%clk 0:02:46.4]} 7... a6 {[%clk 0:02:52.4]} 8. Be3 {[%clk
0:02:45.5]} 8... Qh5 {[%clk 0:02:51.6]} 9. Ba4 {[%clk 0:02:41.8]} 9... b5 {[%clk
0:02:41.4]} 10. Bb3 {[%clk 0:02:40.6]} 10... Bg4 {[%clk 0:02:41.2]} 11. h3
{[%clk 0:02:30.5]} 11... Bxf3 {[%clk 0:02:36.1]} 12. Qxf3 {[%clk 0:02:31.4]}
12... Qxf3 {[%clk 0:02:35.6]} 13. gxf3 {[%clk 0:02:32.3]} 13... g6 {[%clk
0:02:32.8]} 14. Nd5 {[%clk 0:02:28.7]} 14... Nxd5 {[%clk 0:02:29.3]} 15. Bxd5
{[%clk 0:02:21.7]} 15... Rc8 {[%clk 0:02:29.5]} 16. c3 {[%clk 0:02:19.7]} 16...
Bg7 {[%clk 0:02:21.7]} 17. f4 {[%clk 0:02:13.6]} 17... O-O {[%clk 0:02:12.5]}
18. f5 {[%clk 0:02:06.4]} 18... gxf5 {[%clk 0:01:54.2]} 19. exf5 {[%clk
0:02:05]} 19... Kh8 {[%clk 0:01:49.7]} 20. Kh1 {[%clk 0:01:59.4]} 20... Ne5
{[%clk 0:01:43.8]} 21. Rae1 {[%clk 0:01:53.6]} 21... Bf6 {[%clk 0:01:33.1]} 22.
Bd4 {[%clk 0:01:44.3]} 22... Nd3 {[%clk 0:01:15]} 23. Rxe7 {[%clk 0:01:36.9]}
23... Bxd4 {[%clk 0:01:15.2]} 24. cxd4 {[%clk 0:01:37.6]} 24... Kg7 {[%clk
0:01:15.3]} 25. Rd7 {[%clk 0:01:24.6]} 25... Rc2 {[%clk 0:01:03.1]} 26. f6+
{[%clk 0:00:59.3]} 26... Kxf6 {[%clk 0:01:02.7]} 27. Be4 {[%clk 0:00:57]} 27...
Rd2 {[%clk 0:00:53.5]} 28. Bxd3 {[%clk 0:00:56.2]} 28... Rxd3 {[%clk 0:00:53.4]}
29. Rxd6+ {[%clk 0:00:56.5]} 29... Ke7 {[%clk 0:00:53.4]} 30. Rxa6 {[%clk
0:00:56.3]} 30... Rg8 {[%clk 0:00:36.3]} 31. Rh6 {[%clk 0:00:50.6]} 31... Rxd4
{[%clk 0:00:33.1]} 32. Rxh7 {[%clk 0:00:44.4]} 32... Rd2 {[%clk 0:00:32.7]} 33.
b3 {[%clk 0:00:41.2]} 33... Rxa2 {[%clk 0:00:32.3]} 34. Rh5 {[%clk 0:00:41.3]}
34... Rb8 {[%clk 0:00:22.9]} 35. Re1+ {[%clk 0:00:37.3]} 35... Kf6 {[%clk
0:00:22.9]} 36. Kg2 {[%clk 0:00:35.8]} 36... Rg8+ {[%clk 0:00:19.9]} 37. Kf3
{[%clk 0:00:35.9]} 37... b4 {[%clk 0:00:18.4]} 38. Re4 {[%clk 0:00:34.3]} 38...
Rb8 {[%clk 0:00:12.6]} 39. Rhh4 {[%clk 0:00:34.2]} 39... Rb2 {[%clk 0:00:10.8]}
40. Rhf4+ {[%clk 0:00:32.5]} 40... Kg6 {[%clk 0:00:10.6]} 41. Re3 {[%clk
0:00:32.8]} 41... f6 {[%clk 0:00:07.8]} 42. Kg3 {[%clk 0:00:31.1]} 42... Kf7
{[%clk 0:00:08.3]} 43. Ref3 {[%clk 0:00:30.4]} 43... Rb6 {[%clk 0:00:07.9]} 44.
h4 {[%clk 0:00:30.5]} 44... Rb1 {[%clk 0:00:08.4]} 45. Kh2 {[%clk 0:00:29.2]}
45... Rb2 {[%clk 0:00:08.5]} 46. h5 {[%clk 0:00:28.2]} 46... Kg7 {[%clk
0:00:08.9]} 47. Rg3+ {[%clk 0:00:20.9]} 47... Kf7 {[%clk 0:00:09.1]} 48. h6
{[%clk 0:00:20.6]} 48... Rd2 {[%clk 0:00:04.2]} 49. Rg7+ {[%clk 0:00:20.1]}
49... Ke6 {[%clk 0:00:02.7]} 50. h7 {[%clk 0:00:19.6]} 1-0

[Event "*** SCC Grand Prix: Titled Tuesday Blitz"]
[Site "Chess.com"]
[Date "2020.08.04"]
[Round "2"]
[White "ChadBiryani"]
[Black "keepitcool9499"]
[Result "0-1"]
[WhiteElo "2340"]
[BlackElo "2629"]
[TimeControl "180+1"]
[EndTime "14:03:23 PDT"]
[Termination "keepitcool9499 won by resignation"]

1. d4 {[%clk 0:03:00.9]} 1... e6 {[%clk 0:03:00.9]} 2. Bf4 {[%clk 0:03:01]} 2...
d5 {[%clk 0:03:00.7]} 3. e3 {[%clk 0:03:01.3]} 3... Nf6 {[%clk 0:02:59.3]} 4.
Nc3 {[%clk 0:03:01.4]} 4... Be7 {[%clk 0:02:58.2]} 5. Nf3 {[%clk 0:02:57]} 5...
O-O {[%clk 0:02:56.1]} 6. h3 {[%clk 0:02:53.3]} 6... c5 {[%clk 0:02:53.7]} 7.
Be2 {[%clk 0:02:50.6]} 7... Nc6 {[%clk 0:02:48.4]} 8. O-O {[%clk 0:02:50.2]}
8... a6 {[%clk 0:02:37.1]} 9. a4 {[%clk 0:02:41.8]} 9... Bd7 {[%clk 0:02:33.1]}
10. Re1 {[%clk 0:02:38.8]} 10... Rc8 {[%clk 0:02:26.9]} 11. Bf1 {[%clk
0:02:33.2]} 11... Qb6 {[%clk 0:02:21.8]} 12. Rb1 {[%clk 0:02:28.1]} 12... Rfd8
{[%clk 0:02:17.3]} 13. Ne5 {[%clk 0:02:07.4]} 13... cxd4 {[%clk 0:02:06.3]} 14.
Nxc6 {[%clk 0:02:06.8]} 14... bxc6 {[%clk 0:02:02]} 15. exd4 {[%clk 0:02:06.8]}
15... c5 {[%clk 0:01:59.3]} 16. Be5 {[%clk 0:01:57.1]} 16... Ne8 {[%clk
0:01:48.2]} 17. Bd3 {[%clk 0:01:30]} 17... c4 {[%clk 0:01:41.8]} 18. Bf1 {[%clk
0:01:25.9]} 18... Bd6 {[%clk 0:01:36.4]} 19. Qh5 {[%clk 0:01:18.6]} 19... f6
{[%clk 0:01:27.8]} 20. Bxd6 {[%clk 0:01:12.7]} 20... Nxd6 {[%clk 0:01:28.7]} 21.
Ne2 {[%clk 0:00:58.9]} 21... Bxa4 {[%clk 0:01:25]} 22. c3 {[%clk 0:00:34]} 22...
Bc2 {[%clk 0:01:16.8]} 23. Rbc1 {[%clk 0:00:33.8]} 23... Bg6 {[%clk 0:01:14]}
24. Qf3 {[%clk 0:00:26.6]} 24... Qxb2 {[%clk 0:01:08.4]} 25. Nf4 {[%clk
0:00:26.8]} 25... Be4 {[%clk 0:01:03.7]} 26. Qg4 {[%clk 0:00:18]} 26... Bf5
{[%clk 0:01:01.3]} 27. Qf3 {[%clk 0:00:17]} 27... Re8 {[%clk 0:00:53.1]} 28. g4
{[%clk 0:00:17.1]} 28... Be4 {[%clk 0:00:50.7]} 29. Qg3 {[%clk 0:00:17.4]} 29...
e5 {[%clk 0:00:42.8]} 30. Nh5 {[%clk 0:00:09.1]} 30... Bg6 {[%clk 0:00:30.6]}
31. dxe5 {[%clk 0:00:07.7]} 31... Ne4 {[%clk 0:00:28]} 32. Qe3 {[%clk
0:00:03.8]} 32... Rxe5 {[%clk 0:00:26]} 33. f4 {[%clk 0:00:03.9]} 33... Re7
{[%clk 0:00:21.3]} 34. Re2 {[%clk 0:00:04.5]} 34... Qa3 {[%clk 0:00:17.7]} 35.
Bg2 {[%clk 0:00:04.5]} 35... Rce8 {[%clk 0:00:16]} 36. Qd4 {[%clk 0:00:02.7]}
36... Qxc1+ {[%clk 0:00:14]} 37. Kh2 {[%clk 0:00:02]} 37... Qxc3 {[%clk
0:00:12.4]} 38. Qxd5+ {[%clk 0:00:02.1]} 38... Kh8 {[%clk 0:00:11.4]} 39. Qc6
{[%clk 0:00:02.9]} 39... Qd3 {[%clk 0:00:10.2]} 40. Re1 {[%clk 0:00:02.4]} 40...
Qd2 {[%clk 0:00:09.7]} 41. Rb1 {[%clk 0:00:01.7]} 41... Qd6 {[%clk 0:00:08]} 42.
Qxc4 {[%clk 0:00:01.7]} 42... Bxh5 {[%clk 0:00:07.8]} 43. Qf1 {[%clk 0:00:02.5]}
43... Bg6 {[%clk 0:00:06.8]} 44. Rd1 {[%clk 0:00:03.1]} 44... Qc7 {[%clk
0:00:05.9]} 45. Kh1 {[%clk 0:00:04]} 45... Bf7 {[%clk 0:00:06.1]} 46. f5 {[%clk
0:00:04.5]} 46... Nc3 {[%clk 0:00:06.1]} 47. Rc1 {[%clk 0:00:04.5]} 47... Qe5
{[%clk 0:00:04.9]} 48. Qxa6 {[%clk 0:00:04.8]} 48... Ne2 {[%clk 0:00:05.8]} 49.
Re1 {[%clk 0:00:04.3]} 49... Ng3+ {[%clk 0:00:06.7]} 50. Kh2 {[%clk 0:00:04.8]}
50... Qxe1 {[%clk 0:00:07]} 0-1

[Event "*** SCC Grand Prix: Titled Tuesday Blitz"]
[Site "Chess.com"]
[Date "2020.08.04"]
[Round "2"]
[White "aliba25"]
[Black "BilodeauA"]
[Result "0-1"]
[WhiteElo "2555"]
[BlackElo "2864"]
[TimeControl "180+1"]
[EndTime "14:03:32 PDT"]
[Termination "BilodeauA won by resignation"]

1. Nf3 {[%clk 0:03:00.9]} 1... d5 {[%clk 0:02:59.8]} 2. e3 {[%clk 0:03:00.2]}
2... c5 {[%clk 0:02:59]} 3. d4 {[%clk 0:02:46.9]} 3... Nc6 {[%clk 0:02:56.9]} 4.
c4 {[%clk 0:02:41.6]} 4... cxd4 {[%clk 0:02:55.1]} 5. cxd5 {[%clk 0:02:39.7]}
5... Qxd5 {[%clk 0:02:51.9]} 6. Nc3 {[%clk 0:02:39.4]} 6... Qh5 {[%clk
0:02:49.6]} 7. Nb5 {[%clk 0:02:31.7]} 7... Rb8 {[%clk 0:02:36.8]} 8. exd4 {[%clk
0:01:58.8]} 8... e6 {[%clk 0:02:36.9]} 9. Nc7+ {[%clk 0:01:57.8]} 9... Kd8
{[%clk 0:02:37.3]} 10. Bf4 {[%clk 0:01:57.6]} 10... Bb4+ {[%clk 0:02:29.7]} 11.
Nd2 {[%clk 0:01:55.7]} 11... Qxd1+ {[%clk 0:02:06.8]} 12. Rxd1 {[%clk
0:01:56.6]} 12... e5 {[%clk 0:02:01]} 13. dxe5 {[%clk 0:01:40.3]} 13... Kxc7
{[%clk 0:02:00.2]} 14. e6+ {[%clk 0:01:39.9]} 14... Bd6 {[%clk 0:02:00.7]} 15.
Bxd6+ {[%clk 0:01:30.9]} 15... Kxd6 {[%clk 0:02:01.6]} 16. exf7 {[%clk
0:01:31.8]} 16... Nh6 {[%clk 0:02:01]} 17. Bc4 {[%clk 0:01:29.8]} 17... Be6
{[%clk 0:01:37.7]} 18. Ne4+ {[%clk 0:00:54.9]} 18... Ke7 {[%clk 0:01:37]} 19.
Bxe6 {[%clk 0:00:47.4]} 19... Kxe6 {[%clk 0:01:37.9]} 20. Nc5+ {[%clk
0:00:44.9]} 20... Kxf7 {[%clk 0:01:36.4]} 21. Rd7+ {[%clk 0:00:45.5]} 21... Ne7
{[%clk 0:01:26.6]} 22. Nxb7 {[%clk 0:00:42.5]} 22... Ng4 {[%clk 0:01:14.1]} 23.
O-O {[%clk 0:00:31.5]} 23... Nf6 {[%clk 0:01:09.2]} 24. Rc7 {[%clk 0:00:31.8]}
24... Nd5 {[%clk 0:01:00.6]} 25. Rd7 {[%clk 0:00:31.7]} 25... Kg6 {[%clk
0:00:56.8]} 26. Re1 {[%clk 0:00:25.6]} 26... Rhc8 {[%clk 0:00:55.1]} 27. h4
{[%clk 0:00:22.1]} 27... Rc2 {[%clk 0:00:47.6]} 28. g4 {[%clk 0:00:18.3]} 28...
h6 {[%clk 0:00:43.2]} 29. Re6+ {[%clk 0:00:14.4]} 29... Kf7 {[%clk 0:00:37.8]}
30. Re5 {[%clk 0:00:11.6]} 30... Rxb2 {[%clk 0:00:31.5]} 31. Nd6+ {[%clk
0:00:09.1]} 31... Kf6 {[%clk 0:00:20.5]} 32. Re4 {[%clk 0:00:02.8]} 32... R8b4
{[%clk 0:00:21.1]} 33. Rdxe7 {[%clk 0:00:02.2]} 33... Nxe7 {[%clk 0:00:16.8]}
34. g5+ {[%clk 0:00:02.3]} 34... hxg5 {[%clk 0:00:16.4]} 35. hxg5+ {[%clk
0:00:03.2]} 35... Kxg5 {[%clk 0:00:15.7]} 36. Rxe7 {[%clk 0:00:04.1]} 36... Rxa2
{[%clk 0:00:08.5]} 37. Rxg7+ {[%clk 0:00:04.3]} 37... Kf6 {[%clk 0:00:09.1]} 38.
Ne8+ {[%clk 0:00:04.1]} 38... Ke6 {[%clk 0:00:09]} 39. Rg6+ {[%clk 0:00:04.2]}
39... Kf5 {[%clk 0:00:08.8]} 40. Rg7 {[%clk 0:00:04.2]} 40... a5 {[%clk
0:00:08.8]} 41. Ra7 {[%clk 0:00:04.1]} 41... a4 {[%clk 0:00:09]} 42. Nd6+ {[%clk
0:00:04.5]} 42... Ke6 {[%clk 0:00:08.9]} 43. Nb7 {[%clk 0:00:04.7]} 43... a3
{[%clk 0:00:08.7]} 44. Nc5+ {[%clk 0:00:05.1]} 44... Kd5 {[%clk 0:00:09.3]} 45.
Nd3 {[%clk 0:00:05.8]} 45... Rb1+ {[%clk 0:00:09.4]} 46. Kg2 {[%clk 0:00:06.3]}
46... Rb8 {[%clk 0:00:05.9]} 47. Kf3 {[%clk 0:00:05.7]} 47... Kc4 {[%clk
0:00:06]} 48. Ke3 {[%clk 0:00:05.3]} 48... Re8+ {[%clk 0:00:05.6]} 49. Kf3
{[%clk 0:00:04.7]} 49... Kxd3 {[%clk 0:00:06.1]} 0-1

[Event "*** SCC Grand Prix: Titled Tuesday Blitz"]
[Site "Chess.com"]
[Date "2020.08.04"]
[Round "2"]
[White "Ural_bogatyr"]
[Black "BogdanDeac"]
[Result "1/2-1/2"]
[WhiteElo "2372"]
[BlackElo "2768"]
[TimeControl "180+1"]
[EndTime "14:03:32 PDT"]
[Termination "Game drawn by agreement"]

1. d4 {[%clk 0:03:00.9]} 1... d5 {[%clk 0:03:00]} 2. Bf4 {[%clk 0:03:00.2]} 2...
Nf6 {[%clk 0:02:59.5]} 3. e3 {[%clk 0:03:00.6]} 3... c5 {[%clk 0:02:59.9]} 4.
Nc3 {[%clk 0:03:01.1]} 4... cxd4 {[%clk 0:02:58.8]} 5. exd4 {[%clk 0:03:00.9]}
5... a6 {[%clk 0:02:58.3]} 6. Nf3 {[%clk 0:03:01.1]} 6... Nc6 {[%clk 0:02:58.4]}
7. Ne5 {[%clk 0:02:57.6]} 7... e6 {[%clk 0:02:58]} 8. Nxc6 {[%clk 0:02:52.4]}
8... bxc6 {[%clk 0:02:58.9]} 9. Bd3 {[%clk 0:02:52.7]} 9... Qb6 {[%clk
0:02:51.4]} 10. O-O {[%clk 0:02:46.2]} 10... Qxd4 {[%clk 0:02:50.1]} 11. Qf3
{[%clk 0:02:42.8]} 11... Be7 {[%clk 0:02:38.3]} 12. Rfe1 {[%clk 0:02:25.7]}
12... O-O {[%clk 0:02:37.6]} 13. h3 {[%clk 0:02:25.1]} 13... Qb6 {[%clk
0:02:29.1]} 14. Rab1 {[%clk 0:02:20.9]} 14... c5 {[%clk 0:02:28.3]} 15. Be5
{[%clk 0:02:08.2]} 15... Bb7 {[%clk 0:02:28]} 16. Qg3 {[%clk 0:02:06.9]} 16...
Rac8 {[%clk 0:02:21.1]} 17. Qh4 {[%clk 0:02:03.3]} 17... h6 {[%clk 0:02:18.3]}
18. Bf4 {[%clk 0:01:52.3]} 18... c4 {[%clk 0:02:11]} 19. Be3 {[%clk 0:01:32.2]}
19... Qd8 {[%clk 0:02:05.4]} 20. Bf1 {[%clk 0:01:24.9]} 20... Ne4 {[%clk
0:01:56.4]} 21. Qf4 {[%clk 0:01:22.7]} 21... f5 {[%clk 0:01:52.2]} 22. Nxe4
{[%clk 0:01:14.3]} 22... fxe4 {[%clk 0:01:52.1]} 23. Qh2 {[%clk 0:01:12.3]}
23... Bd6 {[%clk 0:01:45.3]} 24. g3 {[%clk 0:01:09.5]} 24... Qf6 {[%clk
0:01:45]} 25. Rbd1 {[%clk 0:01:04.7]} 25... e5 {[%clk 0:01:41.4]} 26. Bc1 {[%clk
0:00:59.6]} 26... d4 {[%clk 0:01:39.4]} 27. b3 {[%clk 0:00:51.7]} 27... c3
{[%clk 0:01:38.4]} 28. Bc4+ {[%clk 0:00:51.3]} 28... Kh8 {[%clk 0:01:32.2]} 29.
h4 {[%clk 0:00:39.5]} 29... Rxc4 {[%clk 0:01:23]} 30. bxc4 {[%clk 0:00:36.1]}
30... Bc5 {[%clk 0:01:23.5]} 31. Bg5 {[%clk 0:00:31.8]} 31... Qf3 {[%clk
0:01:16.9]} 32. Rf1 {[%clk 0:00:09.8]} 32... hxg5 {[%clk 0:01:14.9]} 33. hxg5+
{[%clk 0:00:10.7]} 33... Kg8 {[%clk 0:01:15.1]} 34. g6 {[%clk 0:00:09.8]} 34...
Rb8 {[%clk 0:00:55.7]} 35. Qh7+ {[%clk 0:00:09.6]} 35... Kf8 {[%clk 0:00:55.7]}
36. Qh8+ {[%clk 0:00:09.7]} 36... Ke7 {[%clk 0:00:55.1]} 37. Qxg7+ {[%clk
0:00:10]} 37... Ke6 {[%clk 0:00:54.7]} 38. Qh6 {[%clk 0:00:08.8]} 38... e3
{[%clk 0:00:51.3]} 39. g7+ {[%clk 0:00:08.9]} 39... Kf7 {[%clk 0:00:49.9]} 40.
fxe3 {[%clk 0:00:03.9]} 40... dxe3 {[%clk 0:00:43.7]} 41. Rxf3+ {[%clk
0:00:03.5]} 41... Bxf3 {[%clk 0:00:44.2]} 42. Kh2 {[%clk 0:00:03.5]} 42... Bxd1
{[%clk 0:00:41.7]} 43. Qh7 {[%clk 0:00:03.7]} 43... Rg8 {[%clk 0:00:38.4]} 44.
Qf5+ {[%clk 0:00:02.6]} 44... Kxg7 {[%clk 0:00:38.5]} 45. Qxe5+ {[%clk
0:00:03.1]} 45... Kg6 {[%clk 0:00:38.7]} 46. Qxc5 {[%clk 0:00:03]} 46... e2
{[%clk 0:00:38.1]} 47. Qd6+ {[%clk 0:00:03.2]} 47... Kf5 {[%clk 0:00:37.2]} 48.
Qd5+ {[%clk 0:00:03.5]} 48... Kf6 {[%clk 0:00:37.2]} 49. Qd6+ {[%clk 0:00:03.4]}
49... Kf7 {[%clk 0:00:37.3]} 50. Qd7+ {[%clk 0:00:03.6]} 50... Kg6 {[%clk
0:00:36.7]} 51. Qe6+ {[%clk 0:00:03.6]} 51... Kh7 {[%clk 0:00:36.6]} 52. Qf7+
{[%clk 0:00:03.1]} 52... Kh6 {[%clk 0:00:34.8]} 53. Qf6+ {[%clk 0:00:02.5]}
53... Rg6 {[%clk 0:00:34.7]} 54. Qh4+ {[%clk 0:00:02.7]} 54... Kg7 {[%clk
0:00:34.7]} 55. Qe7+ {[%clk 0:00:03.2]} 55... Kg8 {[%clk 0:00:34.5]} 56. Qe8+
{[%clk 0:00:03.3]} 56... Kh7 {[%clk 0:00:34.5]} 57. Qf7+ {[%clk 0:00:03.6]}
57... Rg7 {[%clk 0:00:34.9]} 58. Qh5+ {[%clk 0:00:03.9]} 58... Kg8 {[%clk
0:00:35.1]} 59. Qe8+ {[%clk 0:00:04.4]} 59... Kh7 {[%clk 0:00:35.2]} 60. Qh5+
{[%clk 0:00:04.8]} 60... Kg8 {[%clk 0:00:35.3]} 61. Qe8+ {[%clk 0:00:05.3]}
1/2-1/2

[Event "*** SCC Grand Prix: Titled Tuesday Blitz"]
[Site "Chess.com"]
[Date "2020.08.04"]
[Round "2"]
[White "bazar-wokzal"]
[Black "davigator"]
[Result "1-0"]
[WhiteElo "2477"]
[BlackElo "2294"]
[TimeControl "180+1"]
[EndTime "14:03:33 PDT"]
[Termination "bazar-wokzal won by checkmate"]

1. e4 {[%clk 0:03:00.9]} 1... c5 {[%clk 0:02:58.6]} 2. c3 {[%clk 0:03:00.6]}
2... Nf6 {[%clk 0:02:57.8]} 3. e5 {[%clk 0:03:01]} 3... Nd5 {[%clk 0:02:57.7]}
4. d4 {[%clk 0:03:01.7]} 4... cxd4 {[%clk 0:02:58.3]} 5. cxd4 {[%clk 0:03:02.4]}
5... d6 {[%clk 0:02:57]} 6. Bc4 {[%clk 0:03:02.4]} 6... e6 {[%clk 0:02:56.1]} 7.
Nf3 {[%clk 0:03:01.8]} 7... Nc6 {[%clk 0:02:55.5]} 8. O-O {[%clk 0:03:01.6]}
8... Nb6 {[%clk 0:02:55.6]} 9. Bb3 {[%clk 0:02:55.4]} 9... d5 {[%clk 0:02:55.9]}
10. Nc3 {[%clk 0:02:54.5]} 10... Be7 {[%clk 0:02:55.3]} 11. a3 {[%clk
0:02:47.1]} 11... Bd7 {[%clk 0:02:54.8]} 12. Qe2 {[%clk 0:02:36.2]} 12... a6
{[%clk 0:02:53.8]} 13. Bf4 {[%clk 0:02:29.7]} 13... Rc8 {[%clk 0:02:53.3]} 14.
Rac1 {[%clk 0:02:29.1]} 14... Na5 {[%clk 0:02:52.4]} 15. Ba2 {[%clk 0:02:26.3]}
15... Nbc4 {[%clk 0:02:52.4]} 16. g3 {[%clk 0:02:23]} 16... b5 {[%clk 0:02:51]}
17. h4 {[%clk 0:02:21.4]} 17... h6 {[%clk 0:02:51.2]} 18. h5 {[%clk 0:02:20.4]}
18... b4 {[%clk 0:02:45.8]} 19. axb4 {[%clk 0:02:19.4]} 19... Bxb4 {[%clk
0:02:45.6]} 20. Ne1 {[%clk 0:02:13.1]} 20... Qb6 {[%clk 0:02:39.4]} 21. Nd3
{[%clk 0:02:09.7]} 21... Bf8 {[%clk 0:02:28.4]} 22. b4 {[%clk 0:02:00.8]} 22...
Nc6 {[%clk 0:02:25.4]} 23. Be3 {[%clk 0:01:23.6]} 23... Nxb4 {[%clk 0:02:24.4]}
24. Bxc4 {[%clk 0:01:18]} 24... Rxc4 {[%clk 0:02:18.3]} 25. Nb2 {[%clk
0:01:08.5]} 25... Rc7 {[%clk 0:02:05]} 26. Nca4 {[%clk 0:01:07.5]} 26... Qa5
{[%clk 0:01:58.8]} 27. Rxc7 {[%clk 0:01:04.4]} 27... Qxc7 {[%clk 0:01:58.7]} 28.
Rc1 {[%clk 0:01:05]} 28... Qa5 {[%clk 0:01:54.4]} 29. Nc5 {[%clk 0:01:05]} 29...
Bb5 {[%clk 0:01:47.2]} 30. Qg4 {[%clk 0:01:02]} 30... Qb6 {[%clk 0:01:06.9]} 31.
Nba4 {[%clk 0:01:00.2]} 31... Qa5 {[%clk 0:00:55.1]} 32. Nxe6 {[%clk 0:00:52.3]}
32... Bxa4 {[%clk 0:00:39.5]} 33. Nxg7+ {[%clk 0:00:38.2]} 33... Bxg7 {[%clk
0:00:39]} 34. Qxg7 {[%clk 0:00:37.8]} 34... Nc2 {[%clk 0:00:19.9]} 35. Qxh8+
{[%clk 0:00:34.4]} 35... Kd7 {[%clk 0:00:20.5]} 36. Qxh6 {[%clk 0:00:30.1]}
36... Qb4 {[%clk 0:00:15]} 37. Qxa6 {[%clk 0:00:20.5]} 37... Bb5 {[%clk
0:00:13.9]} 38. Qb7+ {[%clk 0:00:19.5]} 38... Ke6 {[%clk 0:00:14]} 39. Qc8+
{[%clk 0:00:18.9]} 39... Ke7 {[%clk 0:00:13.5]} 40. Bg5+ {[%clk 0:00:18.4]}
40... f6 {[%clk 0:00:14]} 41. Bxf6+ {[%clk 0:00:17.8]} 41... Kf7 {[%clk
0:00:14.5]} 42. Qc7+ {[%clk 0:00:17.8]} 42... Ke6 {[%clk 0:00:13.8]} 43. Qxc2
{[%clk 0:00:17.3]} 43... Bc4 {[%clk 0:00:11.1]} 44. h6 {[%clk 0:00:17]} 44...
Qb7 {[%clk 0:00:10.7]} 45. h7 {[%clk 0:00:16.8]} 45... Bb3 {[%clk 0:00:08.7]}
46. Qc8+ {[%clk 0:00:15.5]} 46... Qxc8 {[%clk 0:00:07.9]} 47. Rxc8 {[%clk
0:00:16.4]} 47... Bc2 {[%clk 0:00:08]} 48. h8=Q {[%clk 0:00:16.5]} 48... Bg6
{[%clk 0:00:07.3]} 49. Rc6+ {[%clk 0:00:15.8]} 49... Kf5 {[%clk 0:00:07.4]} 50.
Qh4 {[%clk 0:00:15.7]} 50... Bh5 {[%clk 0:00:06.3]} 51. Qf4+ {[%clk 0:00:15.1]}
51... Kg6 {[%clk 0:00:06.4]} 52. Bh4+ {[%clk 0:00:15.8]} 52... Kg7 {[%clk
0:00:06]} 53. Qf6+ {[%clk 0:00:15.9]} 53... Kh7 {[%clk 0:00:05.8]} 54. Rc7+
{[%clk 0:00:15.9]} 54... Bf7 {[%clk 0:00:05.1]} 55. Qxf7+ {[%clk 0:00:16.1]}
55... Kh8 {[%clk 0:00:05.2]} 56. Rc8# {[%clk 0:00:15.9]} 1-0